Cogmind - Beta 13 @@@ ROGUE MODE // 2024.04.03 @ 00:54:15 Player: BigMaxPorter Result: Destroyed by H-55 Commando with Assault Rifle Performance ------------- Evolutions (2) 1000 Regions Visited (4) 800 Robots Destroyed (35) 175 Value Destroyed (729) 729 Prototype IDs (2) 40 Alien Tech Used (0) 0 Bonus (8) 8 TOTAL SCORE: 2752 Bonus ------- High Alert Combat Kills 8 Cogmind --------- Core Integrity 0/550 Matter 300/300 Energy 100/100 System Corruption 0% Temperature Cool (0) Movement Core (50) Location -8/Materials Parts ------- > --- POWER (2) -------- (None) > --- PROPULSION (3) --- (None) > --- UTILITY (4) ------ Target Analyzer > --- WEAPON (2) ------- (None) > --- INVENTORY (5) ---- Improved Deuterium Engine Aluminum Leg Aluminum Leg Hardened Light Armor Plating Datajack Peak State ------------ > --- POWER ------------ Improved Deuterium Engine Improved Deuterium Engine > --- PROPULSION ------- Aluminum Leg Titanium Leg VSS Leg > --- UTILITY ---------- Small Storage Unit Experimental Sensor Array Improved Terrain Scanner Improved Power Shielding > --- WEAPON ----------- Heavy Particle Cannon Light Cannon > --- INVENTORY -------- Light Ion Engine Aluminum Leg Aluminum Leg Improved Power Shielding Hardened Light Armor Plating Grenade Launcher Datajack Mining Claw [Rating: 36] Favorites ----------- Power Light Nuclear Core Engine Improved Deuterium Engine Power Core Light Nuclear Core Propulsion Aluminum Leg Leg Aluminum Leg Utility Small Storage Unit Device Experimental Sensor Array Storage Small Storage Unit Processor Target Analyzer Protection Improved Power Shielding Weapon Light Cannon Energy Gun Medium Laser Energy Cannon Heavy Particle Cannon Ballistic Gun Assault Rifle Ballistic Cannon Light Cannon Launcher Grenade Launcher Slashing Weapon Mining Claw Build | -11 -10 -9 -9 -8 ------- Run | Yrd Mat Mat Min Mat Slots Evolved 4 | . . 2 . 2 Power 1 | . . . . 1 Propulsion 1 | . . 1 . . Utility 2 | . . 1 . 1 Weapon . | . . . . . Parts Attached 39 | 7 5 12 2 13 Power 7 | 2 1 . 1 3 Engine 5 | 2 . . 1 2 Core 2 | . 1 . . 1 Reactor . | . . . . . Propulsion 11 | 2 1 5 . 3 Treads . | . . . . . Leg 11 | 2 1 5 . 3 Wheel . | . . . . . Hover . | . . . . . Flight . | . . . . . Utility 10 | 1 1 3 1 4 Device 4 | . 1 . 1 2 Storage 2 | 1 . 1 . . Processor 1 | . . . . 1 Hackware . | . . . . . Protection 3 | . . 2 . 1 Artifact . | . . . . . Weapon 11 | 2 2 4 . 3 Energy Gun 2 | 1 . 1 . . Energy Cannon 1 | . . . . 1 Ballistic Gun 1 | 1 . . . . Ballistic Cannon 5 | . 2 3 . . Launcher 1 | . . . . 1 Special Weapon . | . . . . . Impact Weapon . | . . . . . Slashing Weapon 1 | . . . . 1 Piercing Weapon . | . . . . . Special Melee Weapon . | . . . . . Unidentified Prototypes 2 | . . 1 1 . Parts Lost 15 | . . 2 . 13 Power 3 | . . . . 3 Propulsion 3 | . . . . 3 Utility 4 | . . 1 . 3 Weapon 5 | . . 1 . 4 Highest Loss Streak 12 | . . 1 . 12 To Critical Strikes . | . . . . . Average Slot Usage (%) 91 | . 95 90 88 90 Engine 6 | . 4 . 11 14 Core 6 | . 9 11 . . Leg 27 | . 28 29 33 23 Device 8 | . 9 1 3 13 Storage 11 | . 14 11 11 8 Processor 1 | . . . . 3 Protection 8 | . . 15 18 8 Energy Cannon 2 | . . . . 7 Ballistic Cannon 17 | . 24 21 11 7 Naked Turns . | . . . . . Heaviest Build 38 | 14 17 21 18 38 Greatest Support 39 | 20 20 30 30 39 Greatest Overweight (x) 9 | 2 . 1 . 9 Average Overweight (x) . | . . . . . Largest Inventory Capacity 8 | 8 8 8 8 8 Average Capacity 7 | 6 8 8 8 7 Most Carried 8 | 6 8 8 8 8 Average Carried 7 | 3 7 7 7 7 Final Capacity 8 | 8 8 8 8 5 Final Carried 8 | 6 8 8 8 5 Class Distribution -------------------- 100% | Mutant Dominant Class ---------------- Mutant | -10/Materials Mutant | -9/Materials Mutant | -9/Mines Mutant | -8/Materials Resources | -11 -10 -9 -9 -8 ----------- Run | Yrd Mat Mat Min Mat Matter Collected 979 | 240 177 283 18 261 Remotely . | . . . . . Salvage Created 707 | . 155 292 . 260 Parts 72 | . 11 33 . 28 Haulers Intercepted . | . . . . . Recyclers Shooed 1 | . . . . 1 Parts Field Recycled . | . . . . . Retrieved Matter . | . . . . . Parts Self-Destructed . | . . . . . Prevented . | . . . . . Kills | -11 -10 -9 -9 -8 ------- Run | Yrd Mat Mat Min Mat Combat Hostiles Destroyed 29 | . 6 13 . 10 Melee 2 | . . . . 2 Cannons 26 | . 6 13 . 7 AOE 1 | . . . . 1 Classes Destroyed 6 | . 3 3 . . Worker 1 | . . 1 . . Builder 4 | . . 1 . 3 Watcher 1 | . 1 . . . Swarmer 17 | . 2 8 . 7 Grunt 7 | . 4 2 . 1 Sentry 5 | . . 3 . 2 Best Kill Streak 5 | . 4 5 . 5 Combat Bots Only 4 | . 4 4 . 4 Max Kills in Single Turn 4 | . 1 2 . 4 Gunslinging . | . . . . . Exploded 1 | . . . . 1 Melee 1 | . . . . 1 Uniques/NPCs Destroyed . | . . . . . Combat | -11 -10 -9 -9 -8 -------- Run | Yrd Mat Mat Min Mat Hostile Shots Fired 271 | . 16 103 . 152 Missed 80 | . 3 37 . 40 Damage Taken 2581 | . 148 668 . 1765 Core 659 | . . 101 . 558 Absorbed by Shields . | . . . . . Redirected to Shielding 170 | . . 51 . 119 Regen/Repaired (Parts) 67 | . . 67 . . Core Remaining (%) 91 | 100 100 . 74 . Volleys Fired 63 | . 14 29 . 20 Largest 2 | . 2 2 . 2 Hottest 110 | . 70 70 . 110 Shots Fired 126 | . 28 58 . 40 Gun . | . . . . . Cannon 125 | . 28 58 . 39 Launcher 1 | . . . . 1 Special . | . . . . . Kinetic 105 | . 28 58 . 19 Thermal 20 | . . . . 20 Explosive 1 | . . . . 1 Electromagnetic . | . . . . . Robot Hit Streak 11 | . 11 7 . 4 Robot Miss Streak 5 | . 2 5 . 4 Penetration Max . | . . . . . Secondary Targets . | . . . . . Shots Hit Robots 70 | . 20 27 . 23 Core Hits 46 | . 9 18 . 19 Critical Kills . | . . . . . Critical Parts Destroyed . | . . . . . Critical Strikes 3 | . 1 2 . . Blast 3 | . 1 2 . . Melee Attacks 10 | . . . . 10 Impact . | . . . . . Slashing 10 | . . . . 10 Piercing . | . . . . . Sneak Attacks . | . . . . . Combat Hostiles . | . . . . . Follow-up Attacks . | . . . . . Damage Inflicted 1506 | . 309 520 . 677 Guns . | . . . . . Cannons 1249 | . 309 520 . 420 Explosions 123 | . . . . 123 Melee 114 | . . . . 114 Ramming 20 | . . . . 20 Kinetic 974 | . 309 520 . 145 Thermal 275 | . . . . 275 Explosive 123 | . . . . 123 Electromagnetic . | . . . . . Impact . | . . . . . Slashing 114 | . . . . 114 Piercing . | . . . . . Highest Corruption 2 | . 2 . . . Average Corruption 2 | . 2 . . . Corruption Purged . | . . . . . Corruption Blocked . | . . . . . Effects 3 | . 3 . . . Matter Fused 1 | . 1 . . . Data Loss (minor) 1 | . 1 . . . Data Loss (major) 1 | . 1 . . . Overload Shots . | . . . . . Overflow Damage . | . . . . . Projectiles . | . . . . . Explosions . | . . . . . Melee . | . . . . . Knockbacks 11 | . 7 1 . 3 Impact 2 | . . . . 2 Kinetic 7 | . 5 1 . 1 Secondary 2 | . 2 . . . Self-Inflicted Damage 21 | . . . . 21 Shots 1 | . . . . 1 Rammed 5 | . . . . 5 Targets Rammed 6 | . . . . 6 Kicked 1 | . . . . 1 Crushed . | . . . . . Highest Temperature 256 | . 162 60 . 256 Average Temperature 77 | . 86 20 . 98 Received Heat Transfer 429 | . 72 150 . 207 Effects 2 | . . . . 2 Energy Bleed 2 | . . . . 2 Siege Activations . | . . . . . Robots Corrupted . | . . . . . Combat Hostiles . | . . . . . Parts Fried . | . . . . . Impact Corruptions . | . . . . . Robots Melted . | . . . . . Combat Hostiles . | . . . . . Parts Melted 1 | . . . . 1 Heat Transferred 407 | . . . . 407 Parts Sabotaged . | . . . . . Parts Stolen . | . . . . . Parts Stripped . | . . . . . Power Chain Reactions . | . . . . . Alert | -11 -10 -9 -9 -8 ------- Run | Yrd Mat Mat Min Mat Peak Influence 434 | . 209 434 93 286 Initial 93 | . . 3 93 35 Average 153 | . 102 257 93 132 Maximum Alert Level 2 | . 1 2 . 1 Low Security (%) 70 | 100 96 15 100 88 Level 1 27 | . 3 78 . 11 Level 2 1 | . . 6 . . Level 3 . | . . . . . Level 4 . | . . . . . Level 5 . | . . . . . High Security . | . . . . . Max Security . | . . . . . Squads Dispatched 6 | . 1 4 . 1 Investigation 2 | . . 2 . . Extermination . | . . . . . Reinforcement 4 | . 1 2 . 1 Assault . | . . . . . Garrison . | . . . . . Intercept . | . . . . . Searches Triggered . | . . . . . Construction Impeded 1 | . . . . 1 Haulers Reinforced . | . . . . . Active Scanning Responses . | . . . . . Cargo Convoy Interrupts . | . . . . . Stealth | -11 -10 -9 -9 -8 --------- Run | Yrd Mat Mat Min Mat Distress Signals 6 | . 2 4 . . Communications Jammed . | . . . . . Distress Signals . | . . . . . Times Spotted 53 | . 10 28 . 15 Peak Tracking Total 11 | . 5 11 . 5 Tactical Retreats 1 | . . 1 . . Traps | -11 -10 -9 -9 -8 ------- Run | Yrd Mat Mat Min Mat Traps Triggered 2 | . 1 1 . . Indirectly . | . . . . . Trap Hack Attempts . | . . . . . Triggered . | . . . . . Disarmed . | . . . . . Reprogrammed . | . . . . . Reused . | . . . . . Traps Extracted . | . . . . . Installed . | . . . . . Triggered . | . . . . . Machines | -11 -10 -9 -9 -8 ---------- Run | Yrd Mat Mat Min Mat Machines Disabled 2 | . . 1 . 1 Max in Single Turn 1 | . . 1 . 1 Machines Repaired . | . . . . . Machines Dismantled . | . . . . . Machines Sabotaged . | . . . . . Overloaded Fab Kills . | . . . . . Hacking | -11 -10 -9 -9 -8 --------- Run | Yrd Mat Mat Min Mat Machines Accessed 5 | . 2 2 . 1 Terminals 3 | . 1 1 . 1 Fabricators . | . . . . . Repair Stations 2 | . 1 1 . . Recycling Units . | . . . . . Scanalyzers . | . . . . . Garrison Access . | . . . . . Total Hacks 19 | . 2 12 . 5 Successful 10 | . 1 7 . 2 Failed 9 | . 1 5 . 3 Catastrophic 1 | . . 1 . . Database Lockouts . | . . . . . Manual . | . . . . . Terminals 11 | . 1 5 . 5 Fabricators . | . . . . . Repair Stations 8 | . 1 7 . . Recycling Units . | . . . . . Scanalyzers . | . . . . . Garrison Access . | . . . . . Terminal Hacks 6 | . 1 3 . 2 Robot Analysis 2 | . 1 1 . . Alert Level 2 | . . 1 . 1 Locate Traps 1 | . . 1 . . Dispatch Records 1 | . . . . 1 Fabricator Hacks . | . . . . . Repair Station Hacks 4 | . . 4 . . Scan Component 2 | . . 2 . . Repair 2 | . . 2 . . Recycling Unit Hacks . | . . . . . Scanalyzer . | . . . . . Garrison Access Hacks . | . . . . . Unauthorized Hacks . | . . . . . Terminals . | . . . . . Fabricators . | . . . . . Repair Stations . | . . . . . Recycling Units . | . . . . . Scanalyzers . | . . . . . Garrison Access . | . . . . . Data Cores Recovered . | . . . . . Used . | . . . . . Hacking Detections 5 | . 2 2 . 1 Full Trace Events 2 | . . 1 . 1 Feedback Events . | . . . . . Feedback Blocked . | . . . . . Robot Schematics Acquired . | . . . . . Robots Built . | . . . . . Authchips . | . . . . . Time . | . . . . . Total Robot Build Rating . | . . . . . Part Schematics Acquired . | . . . . . Parts Built . | . . . . . Authchips . | . . . . . Time . | . . . . . Total Part Build Rating . | . . . . . Parts Repaired 2 | . . 2 . . Time 26 | . . 26 . . Parts Recycled . | . . . . . Recycled Matter . | . . . . . Retrieved Matter . | . . . . . Retrieved Components . | . . . . . Parts Scanalyzed . | . . . . . Part Schematics Acquired . | . . . . . Parts Damaged . | . . . . . Bothacking | -11 -10 -9 -9 -8 ------------ Run | Yrd Mat Mat Min Mat Used RIF Installer . | . . . . . Robots Hacked . | . . . . . Non-combat . | . . . . . Combat . | . . . . . Robot Hacks Applied . | . . . . . Relay Couplers Released . | . . . . . Fabnet Peak Effective % . | . . . . . Robots Rewired . | . . . . . Allies Hacked . | . . . . . Hacks Repelled . | . . . . . Allies | -11 -10 -9 -9 -8 -------- Run | Yrd Mat Mat Min Mat Total Allies . | . . . . . Largest Group . | . . . . . Highest-Rated Group . | . . . . . Highest-Rated Ally . | . . . . . Total Orders . | . . . . . Ally Attacks . | . . . . . Total Damage . | . . . . . Kills . | . . . . . Allies Corrupted . | . . . . . Allies Melted . | . . . . . Intel | -11 -10 -9 -9 -8 ------- Run | Yrd Mat Mat Min Mat Robot Analysis Total 2 | . 1 1 . . Derelict Logs Recovered . | . . . . . Drone Launches . | . . . . . Drone Recoveries . | . . . . . Exploration | -11 -10 -9 -9 -8 ------------- Run | Yrd Mat Mat Min Mat Turns Passed 1532 | 61 449 458 93 471 Spaces Moved 933 | 40 292 260 71 270 Core 10 | 7 . . . 3 Treads . | . . . . . Legs 923 | 33 292 260 71 267 Wheels . | . . . . . Hover . | . . . . . Flight . | . . . . . Fastest Speed 50 | 50 120 120 120 113 Average Speed 120 | 115 120 121 120 122 Slowest Speed 500 | 150 120 190 120 500 Overloaded Moves . | . . . . . Propulsion Burnouts . | . . . . . Robots Hopped . | . . . . . Cave-ins Triggered . | . . . . . Exploration Rate (%) 28 | 4 61 37 17 25 Regions Visited 4 Branch Regions 1 Pre-discovered Areas . | . . . . . Known Exits Taken . | . . . . . Unknown Exits Taken 4 | 1 1 1 1 . Scrap Searched 1 | . . . 1 . Spaces Dug . | . . . . . Terrain Destroyed 12 | . . . . 12 Melee . | . . . . . Projectile 7 | . . . . 7 AOE 5 | . . . . 5 Terrain Rammed . | . . . . . Walls Destroyed . | . . . . . Machines Disabled . | . . . . . Actions | -11 -10 -9 -9 -8 --------- Run | Yrd Mat Mat Min Mat Total 1186 | 51 365 342 79 349 Wait 87 | . 32 34 4 17 Move 929 | 39 291 259 70 270 Hop . | . . . . . Pick Up 26 | 5 12 3 1 5 Fast Attach 18 | 6 1 5 1 5 Attach 6 | . . 2 . 4 Detach . | . . . . . Swap 15 | 1 4 5 1 4 Drop 26 | . 11 5 2 8 Fire 63 | . 14 29 . 20 Melee 10 | . . . . 10 Ram 5 | . . . . 5 Kick 1 | . . . . 1 Crush . | . . . . . Escape Stasis . | . . . . . Rewire . | . . . . . Trap . | . . . . . Miscellaneous . | . . . . . Route ------- -11/Scrapyard -10/Materials -9/Materials (discovered 2 exits: *Mat / [*Min]) -9/Mines -8/Materials History --------- Turn | Location | Event 12 | -11/Scrapyard | Discovered new exit (range 16) 62 | -11/Scrapyard | Entered Materials 309 | -10/Materials | Build established: Mutant 485 | -10/Materials | Discovered new exit (range 14) 511 | -10/Materials | Entered another Materials area 511 | -9/Materials | Evolved 2 slots: Propulsion x1, Utility x1 782 | -9/Materials | Repaired Lgt. Cannon 795 | -9/Materials | Repaired Lgt. Cannon 915 | -9/Materials | Discovered new exit (range 16) 963 | -9/Materials | Discovered new exit (range 5) 969 | -9/Materials | Entered Mines 1036 | -9/Mines | Found a damaged Exp. Sensor Array with a note attached 1039 | -9/Mines | Found Prototype Device 1039 | -9/Mines | Identified Exp. Sensor Array 1049 | -9/Mines | Discovered new exit (range 5) 1062 | -9/Mines | Entered Materials 1062 | -8/Materials | Evolved 2 slots: Power x1, Utility x1 1513 | -8/Materials | Core integrity fell below 50% 1525 | -8/Materials | Core integrity fell below 20% 1533 | -8/Materials | Destroyed by H-55 Commando with Assault Rifle Last Messages --------------- U-05 Engineer lays Concrete. Imp. Deuterium Engine destroyed. U-05 Engineer lays Concrete. U-05 Engineer builds a Wall. S-10 Pest destroyed. Penetrated by Slug. U-05 Engineer lays Concrete. U-05 Engineer builds a Wall. Penetrated by Slug. U-05 Engineer lays Concrete. Mining Claw destroyed. U-05 Engineer builds a Wall. Slammed into Y-45 Defender. Slammed into H-55 Commando. Penetrated by Slug. Slammed into H-55 Commando. H-55 Commando knocked back. Slammed into H-55 Commando. H-55 Commando knocked back. Slug penetrates Wall. Map ----- +----------------------------------------------------+ | ????????????????????######## #???????????#?????? | | ????????????????????# #?????????????????? | | ????????????????????# #?????????????????? | | ????????????????????# #?????????????????? | | ????????????????????# ########???#?????????????? | | ????????????????????# #????????????????????????? | | ????????????????????# #????????????????????????? | | ????????????????????# #????????????????????????? | | ????????????????????# #????????????????????????? | | ????????????????????# #????????????????????????? | | ????????????????????# #????????????????????????? | | ????????????????????# #????????????????????????? | | ????????????????????# ###########??????????????? | | ????????????????????#! ## #??????????????? | | ???????????????????##%! ## #??????????????? | | ?????????## ########*=[ # #??????????????? | | ?????????# % !%!=%=%#% """ #??????????????? | | ?????????# !!=*=% "" #??????????????? | | ?????????# % % """ #??????????????? | | ?????????+ ######" ! # """ #??????????????? | | ?????????# ????????#"#=### """ #??????????????? | | ????????????????????##=### #??????????????? | | ????????????????????#"[############??????????????? | | ????????????????????#"%#?????????????????????????? | | ?????????????????????#H##########????????????????? | | ?????????????????????#!%=@h +????????????????? | | ????????????????######Y#;########????????????????? | | ????????????????# #??????????????????????? | | ????????????????# #??????????????????????? | | ????????????????# % T" #??????????????????????? | | ????????????????# #??????????????????????? | | ????????????????###########??????????????????????? | | ?????????????????????????????????????????????????? | | ?????????????????????????????????????????????????? | | ?????????????????????????????????????????????????? | | ?????????????????????????????????????????????????? | | ?????????????????????????????????????????????????? | | ?????????????????????????????????????????????????? | | ?????????????????????????????????????????????????? | | ?????????????????????????????????????????????????? | | ?????????????????????????????????????????????????? | | ?????????????????????????????????????????????????? | | ?????????????????????????????????????????????????? | | ?????????????????????????????????????????????????? | | ?????????????????????????????????????????????????? | | | | | | | | | | | +----------------------------------------------------+ Best States ------------- Heat Dissipation 38 Energy Generation 27 Energy Capacity 480 Matter Stores 300 Matter Capacity 300 Sight Range 16 Robot Scan Range 20 Terrain Scan Range 16 Terrain Scan Density 10 Armor Coverage 150 Power Shielding 66 Evasion (%) 55 Target Analysis 5 Item Schematics ----------------- None Robot Schematics ------------------ None Fabricated ------------ Nothing Alien Tech Used ----------------- None Achievements -------------- None Challenges ------------ None Game ------ Seed HelicalSigixRail Manual? 0 Play Time 00:22:27 Cumulative 7.0 hours Start 2024.04.03 @ 00:30:46 End 2024.04.03 @ 00:54:15 Sessions 1 Manual Loads 0 Difficulty Rogue Special Mode None Game No. 19 Rogue 19 Adventurer 0 Explorer 0 Win Type - Total 0 Types 0/0/0/0/0/0/0/0/0 Lore% 12 Gallery% 17 Achievement% 11 Wizard Run 0 Options --------- Layout 1 ASCII 0 Keyboard 0 Movement Mouse Keybinds 0 Fullscreen 1 Font 24/Smallcaps Map View 50x35 Zoom Use 0% Tactical HUD 0 Map Filters NONE Filters NONE Steam 1 RUN: 8bdcfdad-d7b2-400d-92e8-5b99766a8e92